Workbook

Sheet 自报 (hidden)
A1: 附件1：
A2: 2015年省分行社会招聘需求计划表
A3: 序号 | B3: 单位 | C3: 用工上限 | D3: 现有用工人数 | E3: 2015届校园招聘拟录用人数 | F3: 剩余用工计划 | G3: 已报总行社会招聘人数 | H3: 省分行社会招聘需求人数 | I3: 差额 | J3: 备注
A4: 表间关系 | C4: A | D4: B | E4: C | F4: D=A-B-C | G4: E | H4: F | I4: G=D-E-F
A5: 1 | B5: 杭州 | C5: 888 | D5: 839 | E5: 31 | F5: =C5-D5-E5 -> 18 | G5: 9 | H5: 39 | I5: =F5-G5-H5 -> -30 | J5: 1.2015年度已离职人员26人，急需补员，从离职原因看，薪酬是一个方面，另一个方面是人员紧缺（不仅仅是数字上，实际用工中还有不少请产假、病假等情况）造成员工、特别是柜员休息休假得不到保证，若不及时增员，将造成恶性循环，且存在风险隐患。 2.现已递交离职申请的有单震、姚利利、唐亮、陈慧、李建宾、叶君、邵露7人，急需补员。 3.10名下半年将退休人员急需补员：潘御娣（10月30日）、孔建英（12月8日）、许璐钰（10月2日）、钟华（8月11日）、张红玲（7月5日）、孙烨（4月14日）、陈燕燕（10月28日）、凌雪芬（12月27日）、马巧苗（12月24日）、方晓雯（10月26日）、尹军红。 4.郭晓宇、滕寒晨、王颖一、蔡慕秋、刘志芬、胡志丽将调动，需补员。 5.2016年初杭分财富中心将开业，初步测算必要增员7人：主任1名，理财经理4名，大堂经理2名。因财富中心人员要求专业、形象好，须提前谋划储备，以防影响开业。其余柜员等需求待下半年招聘实时补员。此事宜将另行汇报。 6.地处偏远的支行招聘本科学历有一定难度，因此部分支行柜员岗位补员学历需求为本科（优秀者可放宽至大专）。 7.从整体上来说，杭州市分行网点共有51个，按照888上限来计算，点均人数仅17.4，大大低于其他分行，人员紧缺程度不言而喻。且从员工队伍建设看，缺员严重使得员工多岗位锻炼培养、梯队建设无法有效实施，造成一定程度上对员工特别是青年员工积极性的打击，不利于人员结构优化，不利于我行健康长足发展。从14年度千人招聘的情况来看，由于各方面原因，千人招聘成功率不高，特别是同业招聘成功率较低，为适应实际招聘市场，一部分行内客户经理需求拟以内部选拔的方式实现，因此本次社招计划中有一部分柜员需求。 恳请省分行考虑我行实际需求和困难，给予增员。
A6: 2 | B6: 温州 | C6: 915 | D6: 874 | E6: 36 | F6: =C6-D6-E6 -> 5 | G6: 11 | H6: 11 | I6: =F6-G6-H6 -> -17 | J6: 省分行选聘4人，下半年退休1人，已提交辞职申请5人，另离职备员7人
A7: 3 | B7: 嘉兴 | C7: =548+3 -> 551 | D7: 530 | E7: 20 | F7: =C7-D7-E7 -> 1 | G7: 4 | H7: 5 | I7: =F7-G7-H7 -> -8 | J7: 下半年有2人退休，离职人数预计至少6人
A8: 4 | B8: 湖州 | C8: 431 | D8: 405 | E8: 7 | F8: =C8-D8-E8 -> 19 | G8: 10 | H8: 19 | I8: =F8-G8-H8 -> -10 | J8: 现有用工人数含市分行挂职行长助理柳青
A9: 5 | B9: 绍兴 | C9: =633+3 -> 636 | D9: 614 | E9: 22 | F9: =C9-D9-E9 -> 0 | G9: 3 | H9: 12 | I9: =F9-G9-H9 -> -15 | J9: 上半年离职退休14人，下半年按15人测算
A10: 6 | B10: 金华 | C10: 847 | D10: 800 | E10: 33 | F10: =C10-D10-E10 -> 14 | G10: 14 | H10: 24 | I10: =F10-G10-H10 -> -24 | J10: 下半年退休6人，递交辞职报告14人，下半年省行竞聘人员2人，省行下派县市挂职助理2人，共计24人。
A11: 7 | B11: 衢州 | C11: =415+3 -> 418 | D11: 397 | E11: 13 | F11: =C11-D11-E11 -> 8 | G11: 3 | H11: 5 | I11: =F11-G11-H11 -> 0
A12: 8 | B12: 丽水 | C12: 607 | D12: 604 | E12: 20 | F12: =C12-D12-E12 -> -17 | G12: 3 | H12: 0 | I12: =F12-G12-H12 -> -20
A13: 9 | B13: 台州 | C13: 777 | D13: 744 | E13: 30 | F13: =C13-D13-E13 -> 3 | G13: 2 | H13: 22 | I13: =F13-G13-H13 -> -21 | J13: 7月拟离职5人、下半年拟退休3人、省行内部选聘拟调2人，目前又已提出离职3人，综合考虑下半年情况，提出22人的社会招聘需求。
A14: 10 | B14: 舟山 | C14: =367+3 -> 370 | D14: 353 | E14: 11 | F14: =C14-D14-E14 -> 6 | G14: 3 | H14: 8 | I14: =F14-G14-H14 -> -5 | J14: 截止8月底将有3名离职人员（程艳、胡妍、邵芬波），省分行内部选聘2名员工（张琴、孔秋叶）
A15: 合计 | C15: =SUM(C5:C14) -> 6440 | D15: =SUM(D5:D14) -> 6160 | E15: =SUM(E5:E14) -> 223 | F15: =SUM(F5:F14) -> 57 | G15: =SUM(G5:G14) -> 62 | H15: =SUM(H5:H14) -> 145 | I15: =SUM(I5:I14) -> -150
A16: 说明：用工上限已包括辖内2015年继续实施迁址改革二类支行增员计划，增员标准按每网点3人的标准核增，详见附件1-2。

Sheet 附件
A1: 附件：
A2: 中国邮政储蓄银行浙江省分行社会招聘需求表
A3: 序号 | B3: 二级分行 | C3: 一级支行 | D3: 所在部门/ 二级支行 | E3: 招聘岗位 | F3: 工作 地点 | G3: 岗位职责 | H3: 年龄要求 | I3: 学历要求 | J3: 专业要求 | K3: 工作经历要求
A4: 1 | B4: 湖州市分行 | D4: 办公室 | E4: 系统维护 | F4: 湖州 | G4: 负责护信息系统、硬件和网络维护管理工作。 | H4: 35周岁及以下 | I4: 国民教育系列大学本科及以上 | J4: 信息技术类专业 | K4: 具有2年以上相关岗位从业经历。
A5: 2 | B5: 湖州市分行 | E5: 客户经理 | F5: 湖州 | G5: 负责个人信贷、公司信贷、各项业务营销等工作。 | H5: 35周岁及以下 | I5: 国民教育系列大学本科及以上 | J5: 金融经济类专业优先 | K5: 具有2年以上工作经历，有金融行业相关岗位经历者优先。
A6: 3 | B6: 湖州市分行 | C6: 长兴县支行 | E6: 客户经理 | F6: 长兴 | G6: 负责个人信贷、公司信贷、各项业务营销等工作。 | H6: 35周岁及以下 | I6: 国民教育系列大学本科及以上 | J6: 金融经济类专业优先 | K6: 具有2年以上工作经历，有金融行业相关岗位经历者优先。
A7: 4 | B7: 湖州市分行 | C7: 安吉县支行 | E7: 客户经理 | F7: 安吉 | G7: 负责个人信贷、公司信贷、各项业务营销等工作。 | H7: 35周岁及以下 | I7: 国民教育系列大学本科及以上 | J7: 金融经济类专业优先 | K7: 具有2年以上工作经历，有金融行业相关岗位经历者优先。
A8: 5 | B8: 湖州市分行 | C8: 德清县支行 | E8: 客户经理 | F8: 德清 | G8: 负责个人信贷、公司信贷、各项业务营销等工作。 | H8: 35周岁及以下 | I8: 国民教育系列大学本科及以上 | J8: 金融经济类专业优先 | K8: 具有2年以上工作经历，有金融行业相关岗位经历者优先。

Sheet 校招汇总 (hidden)
A1: 2015年度校园招聘毕业情况汇总表
A2: 单位 | B2: 拟录用人数 | C2: 已毕业人数 | D2: 未毕业人数 | E2: 后续违约人数 | F2: 实际录用人数 | G2: 情况说明
A3: 省分行 | B3: =C3+D3 -> 10 | C3: 10 | F3: =B3-E3 -> 10
A4: 杭州 | B4: 32 | C4: 30 | D4: 2 | E4: 1 | F4: =B4-E4 -> 31 | G4: 王维：2016年正式毕业，2015.10可获得临时毕业证，11月获得教育部认证。吕行推荐人员。 魏琳：待8月初回国后安排笔试面试体检及公示。
A5: 温州 | B5: =C5+D5 -> 36 | C5: 34 | D5: 2 | F5: =B5-E5 -> 36 | G5: 陈科元：澳门科技大学，2015.8毕业，预计9-10月获得教育部认证； 吕蒙田：重庆工商大学，因一门考试未通过学分不够须9月补考，毕业证预计10月份拿到。父亲是温州市邮政公司人力部老总。【保留资格至年底】
A6: 嘉兴 | B6: =C6+D6 -> 21 | C6: 21 | F6: =B6-E6 -> 21
A7: 湖州 | B7: =C7+D7 -> 7 | C7: 7 | F7: =B7-E7 -> 7
A8: 绍兴 | B8: =C8+D8 -> 22 | C8: 22 | F8: =B8-E8 -> 22
A9: 金华 | B9: 32 | C9: 31 | D9: 1 | E9: 1 | F9: =B9-E9 -> 31 | G9: 姜健彭：上海财经大学浙江学院，因未通过英语四级考试，未发学位证书，学校要求两年内通过英语四级考试后方可予以补发。英语四级每年6月、12月考试，其2015年6月考试成绩不理想，年内应无法通过。【保留资格至年底】 陈凯航：浙江科技学院，因10几门课程未通过未发双证，9月份后通过考试方可补发。【不予录用】
A10: 衢州 | B10: =C10+D10 -> 13 | C10: 13 | F10: =B10-E10 -> 13
A11: 丽水 | B11: =C11+D11 -> 20 | C11: 19 | D11: 1 | F11: =B11-E11 -> 20 | G11: 卢彦辰：上海财经大学浙江学院，因英语四级未通过，无学位证书，预计9月份才能出成绩。原丽水邮政局副局长，现台州邮政局局长刑林杰推荐人员。【保留资格至年底】
A12: 台州 | B12: =C12+D12 -> 30 | C12: 30 | F12: =B12-E12 -> 30
A13: 舟山 | B13: =C13+D13 -> 11 | C13: 11 | F13: =B13-E13 -> 11
A14: 合计 | B14: =SUM(B3:B13) -> 234 | C14: =SUM(C3:C13) -> 228 | D14: =SUM(D3:D13) -> 6 | E14: =SUM(E3:E13) -> 2 | F14: =SUM(F3:F13) -> 232
A15: 备注： 一、招聘公告要求 （一）境内院校应届毕业生须具有全日制普通高等院校大学本科（含）以上学历、学位，在2015年8月前毕业，报到时须获得国家认可的就业报到证、毕业证和学位证； （二）境外院校应届毕业生须为初次就业的留学归国人员，具有大学本科（含）以上学历、学位，在2014年1月至2015年8月毕业，报到时须取得国家教育部出具的学历（学位）认证。 二、建议方案 （一）对于已毕业228人，计划7月20日前提交总行审批，经总行审批同意后于8月组织签订劳动合同。 （二）对于境外毕业生王维、陈科元2人，建议保留录用资格，视毕业和教育部认证情况统一提交总行审批。 （三）对于因学业成绩导致延期毕业的姜健彭等4人，建议取消录用资格，通过短信通知。

Sheet 总-社招汇 (hidden)
A1: 社会招聘需求人数汇总表-总行社会招聘
A2: 单位 | B2: 高管 | C2: 公司 | D2: 国际 | E2: 市场 | F2: 电银 | G2: 合计
A3: 杭州 | C3: 2 | D3: 3 | E3: 2 | F3: 2 | G3: =SUM(B3:F3) -> 9
A4: 温州 | B4: 1 | C4: 3 | D4: 5 | E4: 2 | F4: 1 | G4: =SUM(B4:F4) -> 12
A5: 嘉兴 | D5: 1 | E5: 1 | F5: 1 | G5: =SUM(B5:F5) -> 3
A6: 湖州 | C6: 5 | D6: 2 | F6: 1 | G6: =SUM(B6:F6) -> 8
A7: 绍兴 | C7: 1 | D7: 1 | F7: 1 | G7: =SUM(B7:F7) -> 3
A8: 金华 | C8: 5 | D8: 4 | E8: 3 | F8: 2 | G8: =SUM(B8:F8) -> 14
A9: 衢州 | C9: 1 | D9: 1 | F9: 1 | G9: =SUM(B9:F9) -> 3
A10: 丽水 | D10: 1 | E10: 1 | F10: 1 | G10: =SUM(B10:F10) -> 3
A11: 台州 | B11: 1 | E11: 1 | F11: 1 | G11: =SUM(B11:F11) -> 3
A12: 舟山 | D12: 1 | E12: 1 | F12: 1 | G12: =SUM(B12:F12) -> 3
A13: 小计 | B13: =SUM(B3:B12) -> 2 | C13: =SUM(C3:C12) -> 17 | D13: =SUM(D3:D12) -> 19 | E13: =SUM(E3:E12) -> 11 | F13: =SUM(F3:F12) -> 12 | G13: =SUM(B13:F13) -> 61
A14: 省分行 | B14: 1 | C14: 1 | D14: 2 | E14: 3 | F14: 2 | G14: =SUM(B14:F14) -> 9
A15: 合计 | B15: =B13+B14 -> 3 | C15: =C13+C14 -> 18 | D15: =D13+D14 -> 21 | E15: =E13+E14 -> 14 | F15: =F13+F14 -> 14 | G15: =SUM(B15:F15) -> 70

Sheet 总-社招明 (hidden)
A1: 中国邮政储蓄银行2015年社会招聘需求汇总表（浙江分行）
A2: 该需求明细表已通过分行党委会研究并审定。
A3: 行领导： | G3: 分行公章： | J3: 填报人： | L3: 凌玲 | M3: 填报时间：2015年7月3日
A4: 序号 | B4: 一级分行名称 | C4: 二级分行 名称 | D4: 一级支行 名称 | E4: 所在 部门 | F4: 招聘岗位 | G4: 招聘 人数 | H4: 工作 地点 | I4: 岗位职责 | J4: 专业要求 | K4: 学历要求 | L4: 工作经验要求 | M4: 其他任职要求 | N4: 其他
A5: 1 | B5: 浙江分行 | C5: 无 | D5: 无 | E5: 授信管理部 | F5: 副总经理 | G5: 1 | H5: 杭州 | I5: 略 | J5: 专业不限 | K5: 本科及以上 | L5: 具备5年以上金融行业从业经历；具有相关授信管理从业经历。 | N5: 原则上年龄45周岁及以下
A6: 2 | B6: 浙江分行 | C6: 无 | D6: 无 | E6: 公司业务部 | F6: 产品经理（公司业务） | G6: 1 | H6: 杭州 | I6: 负责公司业务营销管理、市场分析、产品研发、新产品营销推广与培训指导、营销支持等工作。 | J6: 金融经济类专业 | K6: 本科及以上 | L6: 具备2年以上金融行业相关岗位从业经历 | N6: 原则上年龄35周岁及以下
A7: 3 | B7: 浙江分行 | C7: 无 | D7: 无 | E7: 国际业务部 | F7: 产品经理（国际业务） | G7: 2 | H7: 杭州 | I7: 负责国际业务产品市场调研、产品设计、营销推广、销售支持、业务培训等工作。 | J7: 金融经济类专业 | K7: 本科及以上 | L7: 具备3年以上金融行业相关岗位从业经历 | N7: 原则上年龄35周岁及以下
A8: 4 | B8: 浙江分行 | C8: 无 | D8: 无 | E8: 金融市场部 | F8: 票据营销岗 | G8: 1 | H8: 杭州 | I8: 负责融资性票据业务的营销及买入票据的初步审查等工作。 | J8: 金融经济类专业 | K8: 本科及以上 | L8: 具备2年以上金融行业相关岗位从业经历 | N8: 原则上年龄35周岁及以下
A9: 5 | B9: 浙江分行 | C9: 无 | D9: 无 | E9: 金融市场部 | F9: 产品经理（金融市场） | G9: 2 | H9: 杭州 | I9: 负责金融市场业务营销管理、市场分析、产品研发、新产品营销推广与培训指导、营销支持等工作。 | J9: 金融经济类专业 | K9: 本科及以上 | L9: 具备3年以上金融行业相关岗位从业经历 | N9: 原则上年龄35周岁及以下
A10: 6 | B10: 浙江分行 | C10: 无 | D10: 无 | E10: 电子银行部 | F10: 产品经理（电子银行） | G10: 2 | H10: 杭州 | I10: 负责电子银行业务产品市场调研、行业分析、产品设计、营销推广、销售支持、业务培训、系统管理、业务指导等相关工作。 | J10: 金融经济类专业 | K10: 本科及以上 | L10: 具备2年以上金融行业相关岗位从业经历 | M10: 具有互联网企业、大型电子商务企业工作经历的优先 | N10: 原则上年龄35周岁及以下
A11: 7 | B11: 浙江分行 | C11: 温州市分行 | D11: 无 | E11: 行长室 | F11: 副行长 | G11: 1 | H11: 温州 | I11: 略 | J11: 专业不限 | K11: 本科及以上 | L11: 具备5年以上金融行业从业经历；具有同业分支行领导经历。 | N11: 原则上年龄45周岁及以下
A12: 8 | B12: 浙江分行 | C12: 台州市分行 | D12: 无 | E12: 行长室 | F12: 副行长 | G12: 1 | H12: 台州 | I12: 略 | J12: 专业不限 | K12: 本科及以上 | L12: 具备5年以上金融行业从业经历；具有同业分支行领导经历。 | N12: 原则上年龄45周岁及以下
A13: 9 | B13: 浙江分行 | C13: 杭州市分行 | D13: 无 | E13: 公司业务部 | F13: 产品经理（公司业务） | G13: 2 | H13: 杭州 | I13: 负责公司业务营销管理、市场分析、产品研发、新产品营销推广与培训指导、营销支持等工作。 | J13: 金融经济类专业 | K13: 本科及以上 | L13: 具备2年以上金融行业相关岗位从业经历 | N13: 原则上年龄35周岁及以下
A14: 10 | B14: 浙江分行 | C14: 杭州市分行 | D14: 无 | E14: 公司业务部 | F14: 业务管理（国际业务） | G14: 3 | H14: 杭州 | I14: 负责国际业务的制度建设、业务检查、风险控制、培训与指导等工作。 | J14: 金融经济类专业 | K14: 本科及以上 | L14: 具备2年以上金融行业相关岗位从业经历 | N14: 原则上年龄35周岁及以下
A15: 11 | B15: 浙江分行 | C15: 杭州市分行 | D15: 无 | E15: 公司业务部 | F15: 产品经理（金融市场） | G15: 2 | H15: 杭州 | I15: 负责金融市场业务营销管理、市场分析、产品研发、新产品营销推广与培训指导、营销支持等工作。 | J15: 金融经济类专业 | K15: 本科及以上 | L15: 具备2年以上金融行业相关岗位从业经历 | N15: 原则上年龄35周岁及以下
A16: 12 | B16: 浙江分行 | C16: 杭州市分行 | D16: 无 | E16: 电子银行部 | F16: 产品经理（电子银行） | G16: 2 | H16: 杭州 | I16: 负责电子银行业务产品市场调研、行业分析、产品设计、营销推广、销售支持、业务培训、系统管理、业务指导等相关工作。 | J16: 金融经济类专业 | K16: 本科及以上 | L16: 具备2年以上金融行业相关岗位从业经历 | M16: 具有互联网企业、大型电子商务企业工作经历的优先 | N16: 原则上年龄35周岁及以下
A17: 13 | B17: 浙江分行 | C17: 温州市分行 | D17: 无 | E17: 公司业务部 | F17: 产品经理（国际业务） | G17: 1 | H17: 温州 | I17: 负责国际业务产品市场调研、产品设计、营销推广、销售支持、业务培训等工作。 | J17: 金融经济类专业 | K17: 本科及以上 | L17: 具备2年以上金融行业相关岗位从业经历 | N17: 原则上年龄35周岁及以下
A18: 14 | B18: 浙江分行 | C18: 温州市分行 | D18: 无 | E18: 电子银行部 | F18: 产品经理（电子银行） | G18: 1 | H18: 温州 | I18: 负责电子银行业务产品市场调研、行业分析、产品设计、营销推广、销售支持、业务培训、系统管理、业务指导等相关工作。 | J18: 金融经济类专业 | K18: 本科及以上 | L18: 具备2年以上金融行业相关岗位从业经历 | M18: 具有互联网企业、大型电子商务企业工作经历的优先 | N18: 原则上年龄35周岁及以下
A19: 15 | B19: 浙江分行 | C19: 嘉兴市分行 | D19: 无 | E19: 公司业务部 | F19: 产品经理（国际业务） | G19: 1 | H19: 嘉兴 | I19: 负责国际业务产品市场调研、产品设计、营销推广、销售支持、业务培训等工作。 | J19: 金融经济类专业 | K19: 本科及以上 | L19: 具备2年以上金融行业相关岗位从业经历 | N19: 原则上年龄35周岁及以下
A20: 16 | B20: 浙江分行 | C20: 嘉兴市分行 | D20: 无 | E20: 公司业务部 | F20: 产品经理（金融市场） | G20: 1 | H20: 嘉兴 | I20: 负责金融市场业务营销管理、市场分析、产品研发、新产品营销推广与培训指导、营销支持等工作。 | J20: 金融经济类专业 | K20: 本科及以上 | L20: 具备2年以上金融行业相关岗位从业经历 | N20: 原则上年龄35周岁及以下
A21: 17 | B21: 浙江分行 | C21: 嘉兴市分行 | D21: 无 | E21: 电子银行部 | F21: 产品经理（电子银行） | G21: 1 | H21: 嘉兴 | I21: 负责电子银行业务产品市场调研、行业分析、产品设计、营销推广、销售支持、业务培训、系统管理、业务指导等相关工作。 | J21: 金融经济类专业 | K21: 本科及以上 | L21: 具备2年以上金融行业相关岗位从业经历 | M21: 具有互联网企业、大型电子商务企业工作经历的优先 | N21: 原则上年龄35周岁及以下
A22: 18 | B22: 浙江分行 | C22: 湖州市分行 | D22: 无 | E22: 公司业务部 | F22: 产品经理（公司业务） | G22: 2 | H22: 湖州 | I22: 负责公司业务营销管理、市场分析、产品研发、新产品营销推广与培训指导、营销支持等工作。 | J22: 金融经济类专业 | K22: 本科及以上 | L22: 具备2年以上金融行业相关岗位从业经历 | N22: 原则上年龄35周岁及以下
A23: 19 | B23: 浙江分行 | C23: 湖州市分行 | D23: 无 | E23: 公司业务部 | F23: 产品经理（国际业务） | G23: 2 | H23: 湖州 | I23: 负责国际业务产品市场调研、产品设计、营销推广、销售支持、业务培训等工作。 | J23: 金融经济类专业 | K23: 本科及以上 | L23: 具备2年以上金融行业相关岗位从业经历 | N23: 原则上年龄35周岁及以下
A24: 20 | B24: 浙江分行 | C24: 湖州市分行 | D24: 无 | E24: 电子银行部 | F24: 产品经理（电子银行） | G24: 1 | H24: 湖州 | I24: 负责电子银行业务产品市场调研、行业分析、产品设计、营销推广、销售支持、业务培训、系统管理、业务指导等相关工作。 | J24: 金融经济类专业 | K24: 本科及以上 | L24: 具备2年以上金融行业相关岗位从业经历 | M24: 具有互联网企业、大型电子商务企业工作经历的优先 | N24: 原则上年龄35周岁及以下
A25: 21 | B25: 浙江分行 | C25: 绍兴市分行 | D25: 无 | E25: 公司业务部 | F25: 产品经理（公司业务） | G25: 1 | H25: 绍兴 | I25: 负责公司业务营销管理、市场分析、产品研发、新产品营销推广与培训指导、营销支持等工作。 | J25: 金融经济类专业 | K25: 本科及以上 | L25: 具备2年以上金融行业相关岗位从业经历 | N25: 原则上年龄35周岁及以下
A26: 22 | B26: 浙江分行 | C26: 绍兴市分行 | D26: 无 | E26: 公司业务部 | F26: 业务管理（国际业务） | G26: 1 | H26: 绍兴 | I26: 负责国际业务的制度建设、业务检查、风险控制、培训与指导等工作。 | J26: 金融经济类专业 | K26: 本科及以上 | L26: 具备2年以上金融行业相关岗位从业经历 | N26: 原则上年龄35周岁及以下
A27: 23 | B27: 浙江分行 | C27: 绍兴市分行 | D27: 无 | E27: 电子银行部 | F27: 业务管理（电子银行） | G27: 1 | H27: 绍兴 | I27: 负责网上银行、电话银行业务的制度建设、业务管理、系统管理、风险控制、培训与指导等工作。 | J27: 金融经济类专业 | K27: 本科及以上 | L27: 具备2年以上金融行业相关岗位从业经历 | M27: 具有互联网企业、大型电子商务企业工作经历的优先 | N27: 原则上年龄35周岁及以下
A28: 24 | B28: 浙江分行 | C28: 金华市分行 | D28: 无 | E28: 公司业务部 | F28: 产品经理（公司业务） | G28: 1 | H28: 金华 | I28: 负责公司业务营销管理、市场分析、产品研发、新产品营销推广与培训指导、营销支持等工作。 | J28: 金融经济类专业 | K28: 本科及以上 | L28: 具备2年以上金融行业相关岗位从业经历 | N28: 原则上年龄35周岁及以下
A29: 25 | B29: 浙江分行 | C29: 金华市分行 | D29: 无 | E29: 公司业务部 | F29: 产品经理（国际业务） | G29: 1 | H29: 金华 | I29: 负责国际业务产品市场调研、产品设计、营销推广、销售支持、业务培训等工作。 | J29: 金融经济类专业 | K29: 本科及以上 | L29: 具备2年以上金融行业相关岗位从业经历 | N29: 原则上年龄35周岁及以下
A30: 26 | B30: 浙江分行 | C30: 金华市分行 | D30: 无 | E30: 电子银行部 | F30: 产品经理（电子银行） | G30: 1 | H30: 金华 | I30: 负责电子银行业务产品市场调研、行业分析、产品设计、营销推广、销售支持、业务培训、系统管理、业务指导等相关工作。 | J30: 金融经济类专业 | K30: 本科及以上 | L30: 具备2年以上金融行业相关岗位从业经历 | M30: 具有互联网企业、大型电子商务企业工作经历的优先 | N30: 原则上年龄35周岁及以下
A31: 27 | B31: 浙江分行 | C31: 衢州市分行 | D31: 无 | E31: 公司业务部 | F31: 业务管理（国际业务） | G31: 1 | H31: 衢州 | I31: 负责国际业务的制度建设、业务检查、风险控制、培训与指导等工作。 | J31: 金融经济类专业 | K31: 本科及以上 | L31: 具备2年以上金融行业相关岗位从业经历 | N31: 原则上年龄35周岁及以下
A32: 28 | B32: 浙江分行 | C32: 衢州市分行 | D32: 无 | E32: 电子银行部 | F32: 业务管理（电子银行） | G32: 1 | H32: 衢州 | I32: 负责网上银行、电话银行业务的制度建设、业务管理、系统管理、风险控制、培训与指导等工作。 | J32: 金融经济类专业 | K32: 本科及以上 | L32: 具备2年以上金融行业相关岗位从业经历 | M32: 具有互联网企业、大型电子商务企业工作经历的优先 | N32: 原则上年龄35周岁及以下
A33: 29 | B33: 浙江分行 | C33: 丽水市分行 | D33: 无 | E33: 公司业务部 | F33: 产品经理（金融市场） | G33: 1 | H33: 丽水 | I33: 负责金融市场业务营销管理、市场分析、产品研发、新产品营销推广与培训指导、营销支持等工作。 | J33: 金融经济类专业 | K33: 本科及以上 | L33: 具备2年以上金融行业相关岗位从业经历 | N33: 原则上年龄35周岁及以下
A34: 30 | B34: 浙江分行 | C34: 丽水市分行 | D34: 无 | E34: 电子银行部 | F34: 产品经理（电子银行） | G34: 1 | H34: 丽水 | I34: 负责电子银行业务产品市场调研、行业分析、产品设计、营销推广、销售支持、业务培训、系统管理、业务指导等相关工作。 | J34: 金融经济类专业 | K34: 本科及以上 | L34: 具备2年以上金融行业相关岗位从业经历 | M34: 具有互联网企业、大型电子商务企业工作经历的优先 | N34: 原则上年龄35周岁及以下
A35: 31 | B35: 浙江分行 | C35: 台州市分行 | D35: 无 | E35: 公司业务部 | F35: 产品经理（金融市场） | G35: 1 | H35: 台州 | I35: 负责金融市场业务营销管理、市场分析、产品研发、新产品营销推广与培训指导、营销支持等工作。 | J35: 金融经济类专业 | K35: 本科及以上 | L35: 具备2年以上金融行业相关岗位从业经历 | N35: 原则上年龄35周岁及以下
A36: 32 | B36: 浙江分行 | C36: 台州市分行 | D36: 无 | E36: 电子银行部 | F36: 产品经理（电子银行） | G36: 1 | H36: 台州 | I36: 负责电子银行业务产品市场调研、行业分析、产品设计、营销推广、销售支持、业务培训、系统管理、业务指导等相关工作。 | J36: 金融经济类专业 | K36: 本科及以上 | L36: 具备2年以上金融行业相关岗位从业经历 | M36: 具有互联网企业、大型电子商务企业工作经历的优先 | N36: 原则上年龄35周岁及以下
A37: 33 | B37: 浙江分行 | C37: 舟山市分行 | D37: 无 | E37: 公司业务部 | F37: 业务管理（国际业务） | G37: 1 | H37: 舟山 | I37: 负责国际业务的制度建设、业务检查、风险控制、培训与指导等工作。 | J37: 金融经济类专业 | K37: 本科及以上 | L37: 具备2年以上金融行业相关岗位从业经历 | N37: 原则上年龄35周岁及以下
A38: 34 | B38: 浙江分行 | C38: 舟山市分行 | D38: 无 | E38: 公司业务部 | F38: 业务管理（金融市场） | G38: 1 | H38: 舟山 | I38: 负责金融市场业务规章制度、业务操作流程、业务检查、业务风险控制、业务指导与培训等相关工作。 | J38: 金融经济类专业 | K38: 本科及以上 | L38: 具备2年以上金融行业相关岗位从业经历 | N38: 原则上年龄35周岁及以下
A39: 35 | B39: 浙江分行 | C39: 舟山市分行 | D39: 无 | E39: 电子银行部 | F39: 业务管理（电子银行） | G39: 1 | H39: 舟山 | I39: 负责网上银行、电话银行业务的制度建设、业务管理、系统管理、风险控制、培训与指导等工作。 | J39: 金融经济类专业 | K39: 本科及以上 | L39: 具备2年以上金融行业相关岗位从业经历 | M39: 具有互联网企业、大型电子商务企业工作经历的优先 | N39: 原则上年龄35周岁及以下
A40: 36 | B40: 浙江分行 | C40: 温州市分行 | D40: 洞头现支行 | E40: 公司业务部 | F40: 业务管理（公司业务） | G40: 1 | H40: 洞头 | I40: 负责公司业务规章制度、业务操作流程、业务检查、业务风险控制、业务指导与培训等工作。 | J40: 金融经济类专业 | K40: 本科及以上 | L40: 具备2年以上金融行业相关岗位从业经历 | N40: 原则上年龄35周岁及以下
A41: 37 | B41: 浙江分行 | C41: 温州市分行 | D41: 文成县支行 | E41: 公司业务部 | F41: 业务管理（公司业务） | G41: 1 | H41: 文成 | I41: 负责公司业务规章制度、业务操作流程、业务检查、业务风险控制、业务指导与培训等工作。 | J41: 金融经济类专业 | K41: 本科及以上 | L41: 具备2年以上金融行业相关岗位从业经历 | N41: 原则上年龄35周岁及以下
A42: 38 | B42: 浙江分行 | C42: 温州市分行 | D42: 泰顺县支行 | E42: 公司业务部 | F42: 业务管理（公司业务） | G42: 1 | H42: 泰顺 | I42: 负责公司业务规章制度、业务操作流程、业务检查、业务风险控制、业务指导与培训等工作。 | J42: 金融经济类专业 | K42: 本科及以上 | L42: 具备2年以上金融行业相关岗位从业经历 | N42: 原则上年龄35周岁及以下
A43: 39 | B43: 浙江分行 | C43: 温州市分行 | D43: 永嘉县支行 | E43: 公司业务部 | F43: 业务管理（国际业务） | G43: 1 | H43: 永嘉 | I43: 负责国际业务的制度建设、业务检查、风险控制、培训与指导等工作。 | J43: 金融经济类专业 | K43: 本科及以上 | L43: 具备2年以上金融行业相关岗位从业经历 | N43: 原则上年龄35周岁及以下
A44: 40 | B44: 浙江分行 | C44: 温州市分行 | D44: 永嘉县支行 | E44: 公司业务部 | F44: 业务管理（金融市场） | G44: 1 | H44: 永嘉 | I44: 负责金融市场业务规章制度、业务操作流程、业务检查、业务风险控制、业务指导与培训等相关工作。 | J44: 金融经济类专业 | K44: 本科及以上 | L44: 具备2年以上金融行业相关岗位从业经历 | N44: 原则上年龄35周岁及以下
A45: 41 | B45: 浙江分行 | C45: 温州市分行 | D45: 瑞安市支行 | E45: 公司业务部 | F45: 业务管理（国际业务） | G45: 1 | H45: 瑞安 | I45: 负责国际业务的制度建设、业务检查、风险控制、培训与指导等工作。 | J45: 金融经济类专业 | K45: 本科及以上 | L45: 具备2年以上金融行业相关岗位从业经历 | N45: 原则上年龄35周岁及以下
A46: 42 | B46: 浙江分行 | C46: 温州市分行 | D46: 瑞安市支行 | E46: 公司业务部 | F46: 业务管理（金融市场） | G46: 1 | H46: 瑞安 | I46: 负责金融市场业务规章制度、业务操作流程、业务检查、业务风险控制、业务指导与培训等相关工作。 | J46: 金融经济类专业 | K46: 本科及以上 | L46: 具备2年以上金融行业相关岗位从业经历 | N46: 原则上年龄35周岁及以下
A47: 43 | B47: 浙江分行 | C47: 温州市分行 | D47: 苍南县支行 | E47: 公司业务部 | F47: 业务管理（国际业务） | G47: 1 | H47: 苍南 | I47: 负责国际业务的制度建设、业务检查、风险控制、培训与指导等工作。 | J47: 金融经济类专业 | K47: 本科及以上 | L47: 具备2年以上金融行业相关岗位从业经历 | N47: 原则上年龄35周岁及以下
A48: 44 | B48: 浙江分行 | C48: 温州市分行 | D48: 平阳县支行 | E48: 公司业务部 | F48: 业务管理（国际业务） | G48: 1 | H48: 平阳 | I48: 负责国际业务的制度建设、业务检查、风险控制、培训与指导等工作。 | J48: 金融经济类专业 | K48: 本科及以上 | L48: 具备2年以上金融行业相关岗位从业经历 | N48: 原则上年龄35周岁及以下
A49: 45 | B49: 浙江分行 | C49: 湖州市分行 | D49: 德清县支行 | E49: 公司业务部 | F49: 经营管理（公司业务） | G49: 1 | H49: 德清 | I49: 负责统筹管理本部门业务发展策略、市场研究、经营计划、营销策划、业务宣传、经营分析、业务激励政策等工作。 | J49: 金融经济类专业 | K49: 本科及以上 | L49: 具备2年以上金融行业相关岗位从业经历 | N49: 原则上年龄35周岁及以下
A50: 46 | B50: 浙江分行 | C50: 湖州市分行 | D50: 长兴县支行 | E50: 公司业务部 | F50: 经营管理（公司业务） | G50: 1 | H50: 长兴 | I50: 负责统筹管理本部门业务发展策略、市场研究、经营计划、营销策划、业务宣传、经营分析、业务激励政策等工作。 | J50: 金融经济类专业 | K50: 本科及以上 | L50: 具备2年以上金融行业相关岗位从业经历 | N50: 原则上年龄35周岁及以下
A51: 47 | B51: 浙江分行 | C51: 湖州市分行 | D51: 安吉县支行 | E51: 公司业务部 | F51: 经营管理（公司业务） | G51: 1 | H51: 安吉 | I51: 负责统筹管理本部门业务发展策略、市场研究、经营计划、营销策划、业务宣传、经营分析、业务激励政策等工作。 | J51: 金融经济类专业 | K51: 本科及以上 | L51: 具备2年以上金融行业相关岗位从业经历 | N51: 原则上年龄35周岁及以下
A52: 48 | B52: 浙江分行 | C52: 金华市分行 | D52: 永康市支行 | E52: 公司业务部 | F52: 经营管理（公司业务） | G52: 1 | H52: 永康 | I52: 负责统筹管理本部门业务发展策略、市场研究、经营计划、营销策划、业务宣传、经营分析、业务激励政策等工作。 | J52: 金融经济类专业 | K52: 本科及以上 | L52: 具备2年以上金融行业相关岗位从业经历 | N52: 原则上年龄35周岁及以下
A53: 49 | B53: 浙江分行 | C53: 金华市分行 | D53: 永康市支行 | E53: 公司业务部 | F53: 业务管理（国际业务） | G53: 1 | H53: 永康 | I53: 负责国际业务的制度建设、业务检查、风险控制、培训与指导等工作。 | J53: 金融经济类专业 | K53: 本科及以上 | L53: 具备2年以上金融行业相关岗位从业经历 | N53: 原则上年龄35周岁及以下
A54: 50 | B54: 浙江分行 | C54: 金华市分行 | D54: 永康市支行 | E54: 公司业务部 | F54: 业务管理（金融市场） | G54: 1 | H54: 永康 | I54: 负责金融市场业务规章制度、业务操作流程、业务检查、业务风险控制、业务指导与培训等相关工作。 | J54: 金融经济类专业 | K54: 本科及以上 | L54: 具备2年以上金融行业相关岗位从业经历 | N54: 原则上年龄35周岁及以下
A55: 51 | B55: 浙江分行 | C55: 金华市分行 | D55: 义乌市支行 | E55: 公司业务部 | F55: 经营管理（公司业务） | G55: 1 | H55: 义乌 | I55: 负责统筹管理本部门业务发展策略、市场研究、经营计划、营销策划、业务宣传、经营分析、业务激励政策等工作。 | J55: 金融经济类专业 | K55: 本科及以上 | L55: 具备2年以上金融行业相关岗位从业经历 | N55: 原则上年龄35周岁及以下
A56: 52 | B56: 浙江分行 | C56: 金华市分行 | D56: 武义县支行 | E56: 公司业务部 | F56: 业务管理（公司业务） | G56: 1 | H56: 武义 | I56: 负责公司业务规章制度、业务操作流程、业务检查、业务风险控制、业务指导与培训等工作。 | J56: 金融经济类专业 | K56: 本科及以上 | L56: 具备2年以上金融行业相关岗位从业经历 | N56: 原则上年龄35周岁及以下
A57: 53 | B57: 浙江分行 | C57: 金华市分行 | D57: 武义县支行 | E57: 公司业务部 | F57: 业务管理（国际业务） | G57: 1 | H57: 武义 | I57: 负责国际业务的制度建设、业务检查、风险控制、培训与指导等工作。 | J57: 金融经济类专业 | K57: 本科及以上 | L57: 具备2年以上金融行业相关岗位从业经历 | N57: 原则上年龄35周岁及以下
A58: 54 | B58: 浙江分行 | C58: 金华市分行 | D58: 武义县支行 | E58: 公司业务部 | F58: 业务管理（金融市场） | G58: 1 | H58: 武义 | I58: 负责金融市场业务规章制度、业务操作流程、业务检查、业务风险控制、业务指导与培训等相关工作。 | J58: 金融经济类专业 | K58: 本科及以上 | L58: 具备2年以上金融行业相关岗位从业经历 | N58: 原则上年龄35周岁及以下
A59: 55 | B59: 浙江分行 | C59: 金华市分行 | D59: 磐安县支行 | E59: 公司业务部 | F59: 业务管理（公司业务） | G59: 1 | H59: 磐安 | I59: 负责公司业务规章制度、业务操作流程、业务检查、业务风险控制、业务指导与培训等工作。 | J59: 金融经济类专业 | K59: 本科及以上 | L59: 具备2年以上金融行业相关岗位从业经历 | N59: 原则上年龄35周岁及以下
A60: 56 | B60: 浙江分行 | C60: 金华市分行 | D60: 兰溪市支行 | E60: 公司业务部 | F60: 经营经理（国际业务） | G60: 1 | H60: 兰溪 | I60: 负责统筹管理本部门业务发展策略、市场研究、经营计划、营销策划、业务宣传、经营分析、业务激励政策等相关工作。 | J60: 金融经济类专业 | K60: 本科及以上 | L60: 具备2年以上金融行业相关岗位从业经历 | N60: 原则上年龄35周岁及以下
A61: 57 | B61: 浙江分行 | C61: 金华市分行 | D61: 兰溪市支行 | E61: 个人金融部 | F61: 经营经理（电子银行） | G61: 1 | H61: 兰溪 | I61: 负责统筹管理本部门业务发展策略、市场研究、经营计划、营销策划、业务宣传、经营分析、业务激励政策等相关工作。 | J61: 金融经济类专业 | K61: 本科及以上 | L61: 具备2年以上金融行业相关岗位从业经历 | M61: 具有互联网企业、大型电子商务企业工作经历的优先 | N61: 原则上年龄35周岁及以下
A62: 58 | B62: 浙江分行 | C62: 金华市分行 | D62: 浦江县支行 | E62: 公司业务部 | F62: 经营经理（金融市场） | G62: 1 | H62: 浦江 | I62: 负责统筹管理本部门业务发展策略、市场研究、经营计划、营销策划、业务宣传、经营分析、业务激励政策等相关工作。 | J62: 金融经济类专业 | K62: 本科及以上 | L62: 具备2年以上金融行业相关岗位从业经历 | N62: 原则上年龄35周岁及以下
A63: 59 | B63: 浙江分行 | C63: 衢州市分行 | D63: 江山市支行 | E63: 公司业务部 | F63: 经营管理（公司业务） | G63: 1 | H63: 江山 | I63: 负责统筹管理本部门业务发展策略、市场研究、经营计划、营销策划、业务宣传、经营分析、业务激励政策等工作。 | J63: 金融经济类专业 | K63: 本科及以上 | L63: 具备2年以上金融行业相关岗位从业经历 | N63: 原则上年龄35周岁及以下
A64: 60 | B64: 浙江分行 | C64: 丽水市分行 | D64: 青田县支行 | E64: 公司业务部 | F64: 业务管理（国际业务） | G64: 1 | H64: 青田 | I64: 负责国际业务的制度建设、业务检查、风险控制、培训与指导等工作。 | J64: 金融经济类专业 | K64: 本科及以上 | L64: 具备2年以上金融行业相关岗位从业经历 | N64: 原则上年龄35周岁及以下

Sheet 省汇 (hidden)
A1: 2015年省分行机关社会招聘增配情况
A2: 部门 | B2: 增配计划 | C2: 增配来源 | F2: 缺口 | G2: 备注
C3: 内部选聘 | D3: 总行社招 | E3: 省分行社招
A4: 零售部 | B4: 1 | C4: 1
A5: 电银部 | B5: 2 | D5: 2 | G5: 储备“电商人才”
A6: 公司部 | B6: 2 | C6: 1 | D6: 1 | G6: 增员1人、补员1人。
A7: 国际部 | B7: 2 | D7: 2
A8: 市场部 | B8: 5 | C8: 2 | D8: 3
A9: 授信部 | B9: 1 | E9: 1
A10: 科技部 | B10: 5 | E10: 5 | G10: 展鸿择优转聘，另增配2015年校招管培生8人。
A11: 办公室 | B11: 1 | E11: 1
A12: 计财部 | B12: 17 | C12: 8 | E12: 5 | F12: =B12-C12-D12-E12 -> 4 | G12: 内部选聘，另部门现有5人划转，2人外包。
A13: 审计部 | B13: 14 | C13: 2 | E13: 8 | F13: =B13-C13-D13-E13 -> 4
A14: 监察部 | B14: 1 | C14: 1 | G14: 内部选聘
A15: 党群部 | B15: 1 | C15: 1
A16: 安保部 | B16: 2 | C16: 2 | G16: 内部选聘，补员增配，不占用工指标。
A17: 营业部 | B17: 2 | E17: 2 | G17: 补员，不含财富中心建设增员
A18: 合计 | B18: =SUM(B4:B17) -> 56 | C18: =SUM(C4:C17) -> 18 | D18: =SUM(D4:D17) -> 8 | E18: =SUM(E4:E17) -> 22 | F18: =SUM(F4:F17) -> 8

Sheet 杭 (hidden)
A1: 附件2：
A2: 2015年省分行社会招聘需求明细表
A3: 行领导： | F3: 分行公章： | J3: 填报人： | M3: 填报时间：
A4: 序号 | B4: 二级分行名称 | C4: 一级支行名称 | D4: 所在部门/ 二级支行 | E4: 招聘岗位 | F4: 招聘 人数 | G4: 工作 地点 | H4: 岗位职责 | I4: 年龄要求 | J4: 专业要求 | K4: 学历要求 | L4: 工作经验要求 | M4: 持证要求 | N4: 其他任职要求 | O4: 备注
A5: 1 | B5: 杭州市分行 | C5: 萧山区支行 | D5: 二级支行 | E5: 柜员（个人） | F5: 3 | G5: 萧山 | H5: 在权限范围内受理本外币公司、个人、中间等各项业务；处理日常现金首付业务；负责当日业务的日常处理与核对等工作。 | I5: 35周岁及以下 | J5: 专业不限，金融经济类优先 | K5: 本科及以上 | L5: 具备2年以上工作经验，有金融行业相关岗位经历者优先 | N5: 体型适中、形象气质较好。 | O5: 茹华平离职补员；姚丽丽将离职；客户经理后备不足，拟从行内现有柜员中选拔一名充实。
A6: 2 | B6: 杭州市分行 | C6: 余杭区支行 | D6: 外乔司支行 | E6: 柜员（个人） | F6: 3 | G6: 余杭 | H6: 在权限范围内受理本外币公司、个人、中间等各项业务；处理日常现金首付业务；负责当日业务的日常处理与核对等工作。 | I6: 35周岁以内 | J6: 专业不限，金融经济类优先 | K6: 本科及以上 | L6: 具备2年以上工作经验，有金融行业相关岗位经历者优先 | M6: 有会计上岗证优先 | O6: 新开网点增员
A7: 3 | B7: 杭州市分行 | C7: 余杭区支行 | D7: 外乔司支行 | E7: 客户经理 | F7: 1 | G7: 余杭 | H7: 负责个人金融客户、信贷客户、公司客户等各类客户营销工作。 | I7: 35周岁以内 | J7: 专业不限，金融经济类优先 | K7: 本科及以上 | L7: 具备2年以上工作经验，有金融行业相关岗位经历者优先 | M7: 有会计上岗证优先 | O7: 新开网点增员，新增3名编制实在难以满足需要，为控风险提效益，拟配置一名客户经理，男性最佳。
A8: 4 | B8: 杭州市分行 | C8: 富阳市支行 | D8: 二级支行 | E8: 柜员（个人） | F8: 3 | G8: 富阳 | H8: 在权限范围内受理本外币公司、个人、中间等各项业务；处理日常现金首付业务；负责当日业务的日常处理与核对等工作。 | I8: 35周岁以内 | J8: 专业不限，金融经济类优先 | K8: 本科及以上 | L8: 具备2年以上工作经验，有金融行业相关岗位经历者优先 | N8: 体型适中、形象气质较好。 | O8: 富阳事件以后，支行减少人员：杨正明、张卓芸、赵燕华、毛蔚华、朱哲颖、菅成昊、马晓燕、缪嘉译，新增人员只有盛家军和挂职助理，现急需补员，以充实力量，提振士气。应届生中富阳生源只有1名，杯水车薪。
A9: 5 | B9: 杭州市分行 | C9: 富阳市支行 | D9: 二级支行 | E9: 客户经理 | F9: 2 | G9: 富阳 | H9: 负责个人金融客户、信贷客户、公司客户等各类客户营销工作。 | I9: 35周岁以内 | J9: 专业不限，金融经济类优先 | K9: 本科及以上 | L9: 具备2年以上工作经验，有金融行业相关岗位经历者优先 | N9: 沟通能力强 | O9: 富阳事件以后，支行减少人员：杨正明、张卓芸、赵燕华、毛蔚华、朱哲颖、菅成昊、马晓燕、缪嘉译，新增人员只有盛家军和挂职助理，现急需补员，以充实力量，提振士气。应届生中富阳生源只有1名，杯水车薪。
A10: 6 | B10: 杭州市分行 | C10: 临安市支行 | D10: 龙岗镇支行 | E10: 柜员（个人） | F10: 1 | G10: 临安 | H10: 在权限范围内受理本外币公司、个人、中间等各项业务；处理日常现金首付业务；负责当日业务的日常处理与核对等工作。 | I10: 35周岁及以下 | J10: 专业不限，金融经济类优先 | K10: 本科及以上 | L10: 具备2年以上工作经验，有金融行业相关岗位经历者优先 | O10: 王玉彩离职，且今年临安支行有5名员工退休，急需补员，应届生分配中临安生源只有2名，且因回原籍，有不稳定因素。
A11: 7 | B11: 杭州市分行 | C11: 临安市支行 | D11: 市支行营业部 | E11: 柜员（个人） | F11: 1 | G11: 临安 | H11: 在权限范围内受理本外币公司、个人、中间等各项业务；处理日常现金首付业务；负责当日业务的日常处理与核对等工作。 | I11: 35周岁及以下 | J11: 专业不限，金融经济类优先 | K11: 本科及以上 | L11: 具备2年以上工作经验，有金融行业相关岗位经历者优先 | O11: 王玉彩离职，且今年临安支行有5名员工退休，急需补员，应届生分配中临安生源只有2名，且因回原籍，有不稳定因素。
A12: 8 | B12: 杭州市分行 | C12: 桐庐县支行 | D12: 二级支行 | E12: 客户经理 | F12: 3 | G12: 桐庐 | H12: 负责个人金融客户、信贷客户、公司客户等各类客户营销工作。 | I12: 原则上年龄35周岁及以下 | J12: 专业不限，金融经济类优先 | K12: 本科及以上 | L12: 具备2年以上工作经验，有金融行业相关岗位经历者优先 | O12: 桐庐近几年发展较快，信贷规模不断增长，现全行只有客户经理6名，无法满足业务发展需要，长此以往，必将影响现有客户经理工作积极性，现拟每个支行增加1名客户经理。
A13: 9 | B13: 杭州市分行 | C13: 建德市支行 | D13: 二级支行 | E13: 柜员（个人） | F13: 2 | G13: 建德 | H13: 在权限范围内受理本外币公司、个人、中间等各项业务；处理日常现金首付业务；负责当日业务的日常处理与核对等工作。 | I13: 35周岁及以下 | J13: 专业不限，金融经济类优先 | K13: 本科及以上 | L13: 具备2年以上工作经验，有金融行业相关岗位经历者优先 | M13: 取得银行业从业资格证书的优先考虑 | N13: 有良好的沟通能力，学习能力。 | O13: 2015年度退休2名，离职1名，拟离职1名；2014年度退休3名，离职1名，调省分行1名，只增员了2名。现人员紧缺，应届生中建德生源仅2名。
A14: 10 | B14: 杭州市分行 | C14: 建德市支行 | D14: 二级支行 | E14: 客户经理 | F14: 3 | G14: 建德 | H14: 负责个人金融客户、信贷客户、公司客户等各类客户营销工作。 | I14: 35周岁及以下 | J14: 专业不限，金融经济类优先 | K14: 本科及以上 | L14: 具备2年以上工作经验，有金融行业相关岗位经历者优先 | M14: 取得银行业从业资格证书的优先考虑 | N14: 有良好的沟通能力，学习能力。 | O14: 2015年度退休2名，离职1名，拟离职1名；2014年度退休3名，离职1名，调省分行1名，只增员了2名。现人员紧缺，应届生中建德生源仅2名。
A15: 11 | B15: 杭州市分行 | C15: 淳安县支行 | D15: 二级支行 | E15: 柜员（个人） | F15: 3 | G15: 淳安 | H15: 在权限范围内受理本外币公司、个人、中间等各项业务；处理日常现金首付业务；负责当日业务的日常处理与核对等工作。 | I15: 35周岁及以下 | J15: 专业不限，金融经济类优先 | K15: 本科及以上 | L15: 具备2年以上工作经验，有金融行业相关岗位经历者优先 | M15: 有会计上岗证优先 | O15: 林强斌、解杨森、邵露离职补员；一名退休；胡志丽将调动，且存在未提交离职申请但有离职意向的人员；应届生招聘未有淳安生源，拟调剂2名只能解决一时之需，长远必将带来人员流动。
A16: 12 | B16: 杭州市分行 | C16: 淳安县支行 | D16: 二级支行 | E16: 客户经理 | F16: 3 | G16: 淳安 | H16: 负责个人金融客户、信贷客户、公司客户等各类客户营销工作。 | I16: 35周岁及以下 | J16: 专业不限，金融经济类优先 | K16: 本科及以上 | L16: 具备2年以上工作经验，有金融行业相关岗位经历者优先 | M16: 有会计上岗证优先 | O16: 林强斌、解杨森、邵露离职补员；一名退休；胡志丽将调动，且存在未提交离职申请但有离职意向的人员；应届生招聘未有淳安生源，拟调剂2名只能解决一时之需，长远必将带来人员流动。
A17: 13 | B17: 杭州市分行 | D17: 公司业务部 | E17: 票据中心主任 | F17: 1 | G17: 杭州 | H17: 负责票据中心各项经营、管理及客户开发、营销与维护等工作。 | I17: 原则上35周岁以下 | J17: 专业不限，金融经济类优先 | K17: 本科及以上 | L17: 具备2年以上工作经验，有金融行业相关岗位经历者优先 | O17: 现票据中心主任拟离职
A18: 14 | B18: 杭州市分行 | D18: 二级支行 | E18: 客户经理（公司） | F18: 3 | G18: 杭州 | H18: 负责个人金融客户、信贷客户、公司客户等各类客户营销工作。 | I18: 原则上35周岁以下 | J18: 专业不限，金融经济类优先 | K18: 本科及以上 | L18: 具备2年以上工作经验，有金融行业相关岗位经历者优先 | O18: 公司信贷团队人员（叶乔、孙希蒙）离职补员，二级支行客户经理补员。
A19: 15 | B19: 杭州市分行 | D19: 财富中心 | E19: 主任 | F19: 1 | G19: 杭州 | H19: 负责财富中心各项经营、管理工作。 | I19: 原则上40周岁及以下 | J19: 专业不限，金融经济类优先 | K19: 本科及以上 | L19: 具备2年以上工作经验，有金融行业相关岗位经历者优先 | O19: 财富中心建设需要
A20: 16 | B20: 杭州市分行 | D20: 财富中心 | E20: 理财经理 | F20: 4 | G20: 杭州 | H20: 负责理财产品营销等工作。 | I20: 原则上35周岁以下 | J20: 专业不限，金融经济类优先 | K20: 本科及以上 | L20: 具备2年以上工作经验，有金融行业相关岗位经历者优先 | N20: 专业、形象好。 | O20: 财富中心建设需要
A21: 17 | B21: 杭州市分行 | D21: 财富中心 | E21: 大堂经理 | F21: 2 | G21: 杭州 | H21: 引导、分流客户，并提供咨询和营销服务；处理客户异议，维持正常营业秩序；保证营业厅内的干净整洁，创造良好的服务环境；组织并监督营业厅服务工作。 | I21: 原则上35周岁以下 | J21: 专业不限，金融经济类优先 | K21: 本科及以上 | L21: 具备2年以上工作经验，有金融行业相关岗位经历者优先 | N21: 专业、形象好。 | O21: 财富中心建设需要

Sheet 温 (hidden)
A1: 附件2：
A2: 2015年省分行社会招聘需求明细表
A3: 行领导： | F3: 分行公章： | J3: 填报人：郑江漩 | M3: 填报时间：2015-7-15
A4: 序号 | B4: 二级分行名称 | C4: 一级支行名称 | D4: 所在部门/ 二级支行 | E4: 招聘岗位 | F4: 招聘 人数 | G4: 工作 地点 | H4: 岗位职责 | I4: 年龄要求 | J4: 专业要求 | K4: 学历要求 | L4: 工作经验要求 | M4: 持证要求 | N4: 其他任职要求 | O4: 备注
A5: 1 | B5: 温州市分行 | C5: 无 | D5: 无 | E5: 应用开发 | F5: 1 | G5: 温州 | H5: 负责项目在本辖区的推广和配套开发，本行信息技术项目的开发相关工作及应用系统的优化和技术支持。 | I5: 35周岁及以下 | J5: 信息技术类专业 | K5: 本科及以上 | L5: 具备2年以上软件开发经验。参与过多个项目的设计开发工作，有金融行业开发经验者优先 | M5: 无
A6: 2 | B6: 温州市分行 | C6: 无 | D6: 无 | E6: 客户经理 | F6: 3 | G6: 温州 | H6: 负责个人金融客户、信贷客户、公司客户等各类客户营销工作。 | I6: 35周岁及以下 | J6: 金融、经济、财务、营销等相关专业 | K6: 本科及以上 | L6: 具备2年以上工作经验，有金融行业相关岗位工作经验者优先 | M6: 无 | N6: 具有良好的营销和沟通能力，吃苦耐劳，积极向上。
A7: 3 | B7: 温州市分行 | C7: 瑞安市支行 | D7: 无 | E7: 客户经理 | F7: 1 | G7: 瑞安 | H7: 负责个人金融客户、信贷客户、公司客户等各类客户营销工作。 | I7: 35周岁及以下 | J7: 金融、经济、财务、营销等相关专业 | K7: 本科及以上 | L7: 具备2年以上工作经验，有金融行业相关岗位工作经验者优先 | M7: 无 | N7: 具有良好的营销和沟通能力，吃苦耐劳，积极向上。
A8: 4 | B8: 温州市分行 | C8: 泰顺县支行 | D8: 无 | E8: 客户经理 | F8: 1 | G8: 泰顺 | H8: 负责个人金融客户、信贷客户、公司客户等各类客户营销工作。 | I8: 35周岁及以下 | J8: 金融、经济、财务、营销等相关专业 | K8: 本科及以上 | L8: 具备2年以上工作经验，有金融行业相关岗位工作经验者优先 | M8: 无 | N8: 具有良好的营销和沟通能力，吃苦耐劳，积极向上。
A9: 5 | B9: 温州市分行 | C9: 文成县支行 | D9: 无 | E9: 客户经理 | F9: 1 | G9: 文成 | H9: 负责个人金融客户、信贷客户、公司客户等各类客户营销工作。 | I9: 35周岁及以下 | J9: 金融、经济、财务、营销等相关专业 | K9: 本科及以上 | L9: 具备2年以上工作经验，有金融行业相关岗位工作经验者优先 | M9: 无 | N9: 具有良好的营销和沟通能力，吃苦耐劳，积极向上。
A10: 6 | B10: 温州市分行 | C10: 永嘉县支行 | D10: 无 | E10: 客户经理 | F10: 1 | G10: 永嘉 | H10: 负责个人金融客户、信贷客户、公司客户等各类客户营销工作。 | I10: 35周岁及以下 | J10: 金融、经济、财务、营销等相关专业 | K10: 本科及以上 | L10: 具备2年以上工作经验，有金融行业相关岗位工作经验者优先 | M10: 无 | N10: 具有良好的营销和沟通能力，吃苦耐劳，积极向上。
A11: 7 | B11: 温州市分行 | C11: 平阳县支行 | D11: 无 | E11: 客户经理 | F11: 1 | G11: 平阳 | H11: 负责个人金融客户、信贷客户、公司客户等各类客户营销工作。 | I11: 35周岁及以下 | J11: 金融、经济、财务、营销等相关专业 | K11: 本科及以上 | L11: 具备2年以上工作经验，有金融行业相关岗位工作经验者优先 | M11: 无 | N11: 具有良好的营销和沟通能力，吃苦耐劳，积极向上。
A12: 8 | B12: 温州市分行 | C12: 洞头县支行 | D12: 无 | E12: 客户经理 | F12: 1 | G12: 洞头 | H12: 负责个人金融客户、信贷客户、公司客户等各类客户营销工作。 | I12: 35周岁及以下 | J12: 金融、经济、财务、营销等相关专业 | K12: 本科及以上 | L12: 具备2年以上工作经验，有金融行业相关岗位工作经验者优先 | M12: 无 | N12: 具有良好的营销和沟通能力，吃苦耐劳，积极向上。

Sheet 嘉 (hidden)
A1: 附件2：
A2: 2015年省分行社会招聘需求明细表
A3: 行领导： | F3: 分行公章： | J3: 填报人： | L3: 屠晓凌 | M3: 填报时间：2015年7月14日
A4: 序号 | B4: 二级分行名称 | C4: 一级支行名称 | D4: 所在部门/ 二级支行 | E4: 招聘岗位 | F4: 招聘 人数 | G4: 工作 地点 | H4: 岗位职责 | I4: 年龄要求 | J4: 专业要求 | K4: 学历要求 | L4: 工作经验要求 | M4: 持证要求 | N4: 其他任职要求 | O4: 备注
A5: 1 | B5: 嘉兴市分行 | D5: 无 | E5: 客户经理 | F5: 1 | G5: 嘉兴 | H5: 负责个人金融客户、信贷客户、公司客户等各类客户营销工作 | I5: 35周岁及以下 | J5: 专业不限，金融、经济、市场营销、会计相关专业优先 | K5: 本科及以上 | L5: 具备2年以上工作经验，有金融行业相关岗位工作经验者优先；有较强的逻辑分析能力，敏锐的观察力，良好的沟通能力、语言表达和市场开拓能力。 | M5: 通过银行业专业人员职业资格考试考试者优先 | N5: 1、严格遵守职业道德标准和守则； 2、充分掌握信贷类业务相关的法律法规、行政规章和监管要求等； 3、熟悉银行信贷类业务，具备较强的产品营销、业务管理、客户开发和维护能力。
A6: 1 | B6: 嘉兴市分行 | C6: 桐乡市支行 | D6: 无 | E6: 客户经理 | F6: 1 | G6: 桐乡 | H6: 负责个人金融客户、信贷客户、公司客户等各类客户营销工作 | I6: 35周岁及以下 | J6: 专业不限，金融、经济、市场营销、会计相关专业优先 | K6: 本科及以上 | L6: 具备2年以上工作经验，有金融行业相关岗位工作经验者优先；有较强的逻辑分析能力，敏锐的观察力，良好的沟通能力、语言表达和市场开拓能力。 | M6: 通过银行业专业人员职业资格考试考试者优先 | N6: 1、严格遵守职业道德标准和守则； 2、充分掌握信贷类业务相关的法律法规、行政规章和监管要求等； 3、熟悉银行信贷类业务，具备较强的产品营销、业务管理、客户开发和维护能力。
A7: 1 | B7: 嘉兴市分行 | C7: 海盐县支行 | D7: 无 | E7: 客户经理 | F7: 1 | G7: 海盐 | H7: 负责个人金融客户、信贷客户、公司客户等各类客户营销工作 | I7: 35周岁及以下 | J7: 专业不限，金融、经济、市场营销、会计相关专业优先 | K7: 本科及以上 | L7: 具备2年以上工作经验，有金融行业相关岗位工作经验者优先；有较强的逻辑分析能力，敏锐的观察力，良好的沟通能力、语言表达和市场开拓能力。 | M7: 通过银行业专业人员职业资格考试考试者优先 | N7: 1、严格遵守职业道德标准和守则； 2、充分掌握信贷类业务相关的法律法规、行政规章和监管要求等； 3、熟悉银行信贷类业务，具备较强的产品营销、业务管理、客户开发和维护能力。
A8: 2 | B8: 嘉兴市分行 | D8: 无 | E8: 理财经理 | F8: 2 | G8: 嘉兴 | H8: 负责理财产品营销等工作。 | I8: 35周岁及以下 | J8: 专业不限，金融、经济、市场营销、会计相关专业优先 | K8: 本科及以上 | L8: 具备2年以上工作经验，有银行工作经验者优先；有较强理财专业知识。 | M8: 具有会计从业资格证、保险销售从业人员资格证书、证券从业人员资格证书或黄金交易员资格证书者优先 | N8: 1、严格遵守职业道德标准和守则； 2、充分掌握理财类业务相关的法律法规、行政规章和监管要求等； 3、熟悉银行理财类业务，具备较强的产品营销、业务管理、客户开发和维护能力。

Sheet 湖 (hidden)
A1: 附件2：
A2: 2015年省分行社会招聘需求明细表
A3: 行领导： | F3: 分行公章： | J3: 填报人： | M3: 填报时间：
A4: 序号 | B4: 二级分行名称 | C4: 一级支行名称 | D4: 所在部门/ 二级支行 | E4: 招聘岗位 | F4: 招聘 人数 | G4: 工作 地点 | H4: 岗位职责 | I4: 年龄要求 | J4: 专业要求 | K4: 学历要求 | L4: 工作经验要求 | M4: 持证要求 | N4: 其他任职要求 | O4: 备注
A5: 1 | B5: 湖州市分行 | C5: 长兴县支行 | E5: 客户经理 | F5: 5 | G5: 长兴 | H5: 负责个人信贷、公司信贷、各项业务营销等工作。 | I5: 35周岁以下 | J5: 经济金融类相关专业 | K5: 本科及以上 | L5: 具备两年以上工作经验，有金融行业相关工作经历者优先
A6: 2 | B6: 湖州市分行 | C6: 安吉县支行 | E6: 客户经理 | F6: 4 | G6: 安吉 | H6: 负责个人信贷、公司信贷、各项业务营销等工作。 | I6: 35周岁及以下 | J6: 经济金融类相关专业 | K6: 本科及以上 | L6: 具备两年以上工作经验，有金融行业相关工作经历者优先
A7: 3 | B7: 湖州市分行 | C7: 德清县支行 | E7: 客户经理 | F7: 3 | G7: 德清 | H7: 负责个人信贷、公司信贷、各项业务营销等工作。 | I7: 35周岁及以下 | J7: 经济金融类相关专业 | K7: 本科以上 | L7: 具备两年以上工作经验，有金融行业相关工作经历者优先
A8: 4 | B8: 湖州市分行 | E8: 客户经理 | F8: 7 | G8: 市本级 | H8: 负责个人信贷、公司信贷、各项业务营销等工作。 | I8: 35周岁及以下 | J8: 经济金融类相关专业 | K8: 本科以上 | L8: 具备两年以上工作经验，有金融行业相关工作经历者优先

Sheet 绍 (hidden)
A1: 附件2：
A2: 2015年省分行社会招聘需求明细表
A3: 行领导： | F3: 分行公章： | J3: 填报人：胡益江 | M3: 填报时间：2015-07-15
A5: 序号 | B5: 二级分行名称 | C5: 一级支行名称 | D5: 所在部门/ 二级支行 | E5: 招聘岗位 | F5: 招聘 人数 | G5: 工作 地点 | H5: 岗位职责 | I5: 年龄要求 | J5: 专业要求 | K5: 学历要求 | L5: 工作经验要求 | M5: 持证要求 | N5: 其他任职要求 | O5: 备注
A6: 1 | B6: 绍兴市分行 | C6: 无 | D6: 营业部 | E6: 客户经理 | F6: 2 | G6: 绍兴 | H6: 负责个人金融客户、信贷客户、公司客户等各类客户营销工作。 | I6: 原则上年龄35周岁及以下 | J6: 金融经济类专业 | K6: 本科及以上 | L6: 具备2年以上金融行业相关岗位从业经历
A7: 2 | B7: 绍兴市分行 | C7: 无 | D7: 公司业务部 | E7: 客户经理(资金业务） | F7: 1 | G7: 绍兴 | H7: 负责公司客户营销、客户关系的建立和维护，客户授信条件等内容的调查审核等工作。 | I7: 原则上年龄35周岁及以下 | J7: 金融经济类专业 | K7: 本科及以上 | L7: 具备2年以上金融行业相关岗位从业经历
A8: 3 | B8: 绍兴市分行 | C8: 无 | D8: 公司业务部 | E8: 客户经理(贸易金融业务） | F8: 1 | G8: 绍兴 | H8: 负责公司客户营销、客户关系的建立和维护，客户授信条件等内容的调查审核等工作。 | I8: 原则上年龄35周岁及以下 | J8: 金融经济类专业 | K8: 本科及以上 | L8: 具备2年以上金融行业相关岗位从业经历
A9: 4 | B9: 绍兴市分行 | C9: 无 | D9: 公司业务部 | E9: 产品经理(资产负债管理） | F9: 1 | G9: 绍兴 | H9: 负责对公理财、现金管理业务营销管理、市场分析、产品研发、新产品营销推广与培训指导、营销支持等工作。 | I9: 原则上年龄35周岁及以下 | J9: 金融经济类专业 | K9: 本科及以上 | L9: 具备2年以上金融行业相关岗位从业经历
A10: 5 | B10: 绍兴市分行 | C10: 无 | D10: 个人金融部 | E10: 产品经理（信用卡） | F10: 1 | G10: 绍兴 | H10: 负责产品市场调研、产品设计、营销推广、销售支持、业务培训等工作。 | I10: 原则上年龄35周岁及以下 | J10: 金融经济类专业 | K10: 本科及以上 | L10: 具备2年以上金融行业相关岗位从业经历
A11: 6 | B11: 绍兴市分行 | C11: 无 | D11: 营业部 | E11: 理财经理 | F11: 1 | G11: 绍兴 | H11: 负责理财产品营销等工作。 | I11: 原则上年龄35周岁及以下 | J11: 金融经济类专业 | K11: 本科及以上 | L11: 具备2年以上金融行业相关岗位从业经历 | M11: 具有AFP或CFP 资格证
A12: 7 | B12: 绍兴市分行 | C12: 无 | D12: 信息科技部 | E12: 信息安全管理 | F12: 1 | G12: 绍兴 | H12: 负责信息系统安全和风险管理等相关工作。 | I12: 原则上年龄35周岁及以下 | J12: 信息技术类专业 | K12: 本科及以上 | L12: 具备2年以上信息技术行业相关岗位从业经历
A13: 8 | B13: 绍兴市分行 | C13: 无 | D13: 法律与合规部 | E13: 合规管理 | F13: 1 | G13: 绍兴 | H13: 负责合规制度的制定，负责全行制度梳理、合规咨询、合规审查、合规评估及合规文化建设等工作。 | I13: 原则上年龄35周岁及以下 | J13: 金融经济类、法律类专业 | K13: 本科及以上 | L13: 具备2年以上金融行业相关岗位从业经历
A14: 9 | B14: 绍兴市分行 | C14: 无 | D14: 授信管理部 | E14: 授信管理 | F14: 1 | G14: 绍兴 | H14: 负责授信管理相关规章制度制定、授权管理、征信管理、行业研究和分析、信贷政策、行业风险监测，授信执行环节的监督检查。 | I14: 原则上年龄35周岁及以下 | J14: 金融经济类、法律类专业 | K14: 本科及以上 | L14: 具备2年以上金融行业相关岗位从业经历
A15: 10 | B15: 绍兴市分行 | C15: 无 | D15: 资产保全部 | E15: 资产保全 | F15: 1 | G15: 绍兴 | H15: 负责资产保全业务管理工作，提供资产保全法律事务保障及资产保全综合协调工作等。 | I15: 原则上年龄35周岁及以下 | J15: 金融经济类、法律类专业 | K15: 本科及以上 | L15: 具备2年以上金融行业相关岗位从业经历
A16: 11 | B16: 绍兴市分行 | C16: 无 | D16: 办公室 | E16: 综合管理 | F16: 1 | G16: 绍兴 | H16: 负责印章管理、档案管理、保密、机要管理、文件收发、后勤管理、会议管理等综合性行政管理工作。 | I16: 原则上年龄35周岁及以下 | J16: 金融经济类、文学类专业 | K16: 本科及以上 | L16: 具备2年以上经济金融相关岗位从业经历

Sheet 金 (hidden)
A1: 附件2：
A2: 2015年省分行社会招聘需求明细表
A3: 行领导： | F3: 分行公章： | J3: 填报人： | M3: 填报时间：
A4: 序号 | B4: 二级分行名称 | C4: 一级支行名称 | D4: 所在部门/ 二级支行 | E4: 招聘岗位 | F4: 招聘 人数 | G4: 工作 地点 | H4: 岗位职责 | I4: 年龄要求 | J4: 专业要求 | K4: 学历要求 | L4: 工作经验要求 | M4: 持证要求 | N4: 其他任职要求 | O4: 备注
A5: 1 | B5: 金华市分行 | C5: 无 | D5: 营业部 | E5: 客户经理 | F5: 2 | G5: 金华 | H5: 负责个人金融客户、信贷客户、公司客户等各类客户营销工作。 | I5: 35周岁及以下 | J5: 金融经济类、财务会计类专业优先 | K5: 本科及以上 | L5: 具有2年以上工作经历，具有金融行业相关岗位从业经历优先
A6: 2 | B6: 金华市分行 | C6: 义乌市支行 | D6: 公司业务部 | E6: 副总经理 | F6: 1 | G6: 义乌 | H6: 协助总经理做好部门各项经营、管理等工作。 | I6: 40周岁及以下 | J6: 金融经济类、财务会计类专业优先 | K6: 本科及以上 | L6: 具有5年以上金融行业相关岗位从业经历，具有相关业务管理工作经历。 | N6: 具有丰富的渠道资源、团队管理经验和较强的拓展、带队能力，熟悉金融市场各板块业务；有能力带领员工完成各项金融市场经营指标
A7: 3 | B7: 金华市分行 | C7: 义乌市支行 | D7: 营业部 | E7: 客户经理 | F7: 4 | G7: 义乌 | H7: 负责个人金融客户、信贷客户、公司客户等各类客户营销工作。 | I7: 35周岁及以下 | J7: 金融经济类、财务会计类专业优先 | K7: 本科及以上 | L7: 具有2年以上工作经历，具有金融行业相关岗位从业经历优先
A8: 4 | B8: 金华市分行 | C8: 永康市支行 | D8: 二级支行 | E8: 客户经理 | F8: 4 | G8: 永康 | H8: 负责个人金融客户、信贷客户、公司客户等各类客户营销工作。 | I8: 35周岁及以下 | J8: 金融经济类、财务会计类专业优先 | K8: 本科及以上 | L8: 具有2年以上工作经历，具有金融行业相关岗位从业经历优先
A9: 5 | B9: 金华市分行 | C9: 永康市支行 | D9: 综合管理部 | E9: 系统管理员 | F9: 1 | G9: 永康 | H9: 负责信息系统和网络维护及管理、终端设备维护、机房值班等工作。 | I9: 35周岁及以下 | J9: 金融经济类、财务会计类专业优先 | K9: 本科及以上 | L9: 具有2年以上相关岗位工作经历，具有金融行业相关岗位从业经历优先
A10: 6 | B10: 金华市分行 | C10: 东阳市支行 | D10: 二级支行 | E10: 客户经理 | F10: 4 | G10: 东阳 | H10: 负责个人金融客户、信贷客户、公司客户等各类客户营销工作。 | I10: 35周岁及以下 | J10: 金融经济类、财务会计类专业优先 | K10: 本科及以上 | L10: 具有2年以上工作经历，具有金融行业相关岗位从业经历优先
A11: 7 | B11: 金华市分行 | C11: 磐安县支行 | D11: 营业部 | E11: 理财经理 | F11: 1 | G11: 磐安 | H11: 负责理财产品营销等工作。 | I11: 35周岁及以下 | J11: 金融经济类、财务会计类专业优先 | K11: 本科及以上 | L11: 具有2年以上工作经历，具有金融行业相关岗位从业经历优先
A12: 8 | B12: 金华市分行 | C12: 磐安县支行 | D12: 营业部 | E12: 客户经理 | F12: 1 | G12: 磐安 | H12: 负责个人金融客户、信贷客户、公司客户等各类客户营销工作。 | I12: 35周岁及以下 | J12: 金融经济类、财务会计类专业优先 | K12: 本科及以上 | L12: 具有2年以上工作经历，具有金融行业相关岗位从业经历优先
A13: 9 | B13: 金华市分行 | C13: 浦江县支行 | E13: 客户经理 | F13: 1 | G13: 浦江 | H13: 负责个人金融客户、信贷客户、公司客户等各类客户营销工作。 | I13: 35周岁及以下 | J13: 金融经济类、财务会计类专业优先 | K13: 本科及以上 | L13: 具有2年以上工作经历，具有金融行业相关岗位从业经历优先 | M13: 具有会计从业资格证
A14: 10 | B14: 金华市分行 | C14: 武义县支行 | D14: 桐琴镇支行 | E14: 客户经理 | F14: 2 | G14: 武义 | H14: 负责个人金融客户、信贷客户、公司客户等各类客户营销工作。 | I14: 35周岁及以下 | J14: 金融经济类、财务会计类专业优先 | K14: 本科及以上 | L14: 具有2年以上工作经历，具有金融行业相关岗位从业经历优先
A15: 11 | B15: 金华市分行 | C15: 武义县支行 | D15: 营业部 | E15: 客户经理 | F15: 2 | G15: 武义 | H15: 负责个人金融客户、信贷客户、公司客户等各类客户营销工作。 | I15: 35周岁及以下 | J15: 金融经济类、财务会计类专业优先 | K15: 本科及以上 | L15: 具有2年以上工作经历，具有金融行业相关岗位从业经历优先
A16: 12 | B16: 金华市分行 | C16: 武义县支行 | D16: 桐琴镇支行 | E16: 理财经理 | F16: 1 | G16: 武义 | H16: 负责理财产品推广和销售。 | I16: 35周岁及以下 | J16: 金融经济类、财务会计类专业优先 | K16: 本科及以上 | L16: 具有2年以上工作经历，具有金融行业相关岗位从业经历优先

Sheet 衢 (hidden)
A1: 附件2：
A2: 2015年省分行社会招聘需求明细表
A3: 行领导： | F3: 分行公章： | J3: 填报人： | L3: 吴真 | M3: 填报时间：2015-7-10
A4: 序号 | B4: 二级分行名称 | C4: 一级支行名称 | D4: 所在部门/ 二级支行 | E4: 招聘岗位 | F4: 招聘 人数 | G4: 工作 地点 | H4: 岗位职责 | I4: 年龄要求 | J4: 专业要求 | K4: 学历要求 | L4: 工作经验要求 | M4: 持证要求 | N4: 其他任职要求 | O4: 备注
A5: 1 | B5: 衢州市分行 | D5: 风险管理部 | E5: 资产保全 | F5: 1 | G5: 衢州 | H5: 负责资产保全业务管理，提供资产保全法律事务保障及资产保全综合协调工作等。 | I5: 35周岁及以下 | J5: 金融经济类专业 | K5: 本科及以上 | L5: 具备2年以上金融行业相关岗位从业经历 | M5: 无 | N5: 无 | O5: 业务发展需要，加强风险管理人才
A6: 2 | B6: 衢州市分行 | D6: 零售信贷部 | E6: 产品经理 | F6: 1 | G6: 衢州 | H6: 负责产品市场调研、产品设计、营销推广、销售支持、业务培训等工作。 | I6: 35周岁及以下 | J6: 金融经济类专业 | K6: 本科及以上 | L6: 具备2年以上金融行业相关岗位从业经历 | M6: 无 | N6: 无 | O6: 需要产品策划、宣传人员
A7: 3 | B7: 衢州市分行 | C7: 开化县支行 | D7: 个人金融部 | E7: 业务管理 | F7: 1 | G7: 开化 | H7: 负责金融市场拓展、信用卡、电子银行等业务的制度建设、业务检查、风险控制、培训与指导等工作。 | I7: 35周岁及以下 | J7: 金融经济类专业 | K7: 本科及以上 | L7: 具备2年以上金融行业相关岗位从业经历 | M7: 无 | N7: 最好为男性 | O7: 业务人员较缺
A8: 4 | B8: 衢州市分行 | C8: 龙游县支行 | D8: 公司业务部 | E8: 经营管理（公司业务） | F8: 1 | G8: 龙游 | H8: 负责统筹管理本部门业务发展策略、市场研究、经营计划、营销策划、业务宣传、经营分析、业务激励政策等工作。 | I8: 35周岁及以下 | J8: 金融经济类专业 | K8: 本科及以上 | L8: 具备2年以上金融行业相关岗位从业经历 | M8: 无 | N8: 无 | O8: 缺公司业务综合性人员
A9: 5 | B9: 衢州分行 | C9: 常山县支行 | D9: 营业部 | E9: 客户经理 | F9: 1 | G9: 常山 | H9: 负责个人金融客户、信贷客户、公司客户等各类客户营销工作。 | I9: 35周岁及以下 | J9: 金融经济类专业 | K9: 本科及以上 | L9: 具备2年以上金融行业相关岗位从业经历 | M9: 无 | N9: 无 | O9: 发展业务

Sheet 台 (hidden)
A1: 附件2：
A2: 2015年省分行社会招聘需求明细表
A3: 行领导： | F3: 分行公章： | J3: 填报人： | M3: 填报时间：
A4: 序号 | B4: 二级分行名称 | C4: 一级支行名称 | D4: 所在部门/ 二级支行 | E4: 招聘岗位 | F4: 招聘 人数 | G4: 工作 地点 | H4: 岗位职责 | I4: 年龄要求 | J4: 专业要求 | K4: 学历要求 | L4: 工作经验要求 | M4: 持证要求 | N4: 其他任职要求 | O4: 备注
A5: 1 | B5: 台州市分行 | C5: 无 | D5: 个人金融部信用卡部 | E5: 产品经理 | F5: 1 | G5: 台州 | H5: 负责信用卡市场调研、产品设计、营销推广、销售支持、业务培训等工作。 | I5: 原则上年龄35周岁及以下 | J5: 金融经济类专业 | K5: 本科及以上 | L5: 具备2年以上金融行业相关岗位从业经历
A6: 2 | B6: 台州市分行 | C6: 无 | E6: 理财经理 | F6: 2 | G6: 台州 | H6: 负责理财产品营销等工作。 | I6: 原则上年龄35周岁及以下 | J6: 金融经济类专业 | K6: 本科及以上 | L6: 具备2年以上金融行业相关岗位从业经历
A7: 3 | B7: 台州市分行 | C7: 无 | D7: 授信管理部 | E7: 授信审批 | F7: 1 | G7: 台州 | H7: 负责授权范围内的授信的独立审批或审议工作。 | I7: 原则上年龄35周岁及以下 | J7: 金融经济类专业 | K7: 本科及以上 | L7: 具备2年以上金融行业相关岗位从业经历
B8: 台州市分行 | C8: 无 | D8: 授信管理部 | E8: 授信审查 | F8: 1 | G8: 台州 | H8: 负责业务报批材料的接收、审查等工作，出具审查报告；负责贷审会相关组织落实工作，整理下发审批决策的意见。 | I8: 原则上年龄35周岁及以下 | J8: 金融经济类专业 | K8: 本科及以上 | L8: 具备2年以上金融行业相关岗位从业经历
A9: 4 | B9: 台州市分行 | C9: 无 | D9: 公司业务部 | E9: 客户经理 | F9: 1 | G9: 台州 | H9: 负责客户拓展与营销、客户关系维护、为客户提供财务分析或投资建议、管理相应模块等工作。 | I9: 原则上年龄35周岁及以下 | J9: 金融经济类专业 | K9: 本科及以上 | L9: 具备2年以上金融行业相关岗位从业经历
A10: 5 | B10: 台州市分行 | C10: 无 | D10: 票据中心 | E10: 票据审验 | F10: 1 | G10: 台州 | H10: 负责操作票据承兑、贴现、行内转贴现、再贴现等票据融资业务。 | I10: 原则上年龄35周岁及以下 | J10: 金融经济类专业 | K10: 本科及以上 | L10: 具备2年以上金融行业相关岗位从业经历
A11: 6 | B11: 台州市分行 | C11: 玉环县支行 | E11: 客户经理 | F11: 6 | G11: 玉环 | H11: 负责个人金融客户、信贷客户、公司客户等各类客户营销工作。 | I11: 原则上年龄35周岁及以下 | J11: 专业不限，金融经济类相关专业优先 | K11: 本科及以上 | L11: 具备2年以上工作经验，有金融行业相关岗位经历者优先
A12: 7 | B12: 台州市分行 | C12: 黄岩区支行 | E12: 客户经理 | F12: 2 | G12: 黄岩 | H12: 负责个人金融客户、信贷客户、公司客户等各类客户营销工作。 | I12: 原则上年龄35周岁及以下 | J12: 专业不限，金融经济类相关专业优先 | K12: 本科及以上 | L12: 具备2年以上工作经验，有金融行业相关岗位经历者优先
A13: 8 | B13: 台州市分行 | C13: 温岭市支行 | E13: 客户经理 | F13: 4 | G13: 温岭 | H13: 负责个人金融客户、信贷客户、公司客户等各类客户营销工作。 | I13: 原则上年龄35周岁及以下 | J13: 专业不限，金融经济类相关专业优先 | K13: 本科及以上 | L13: 具备2年以上工作经验，有金融行业相关岗位经历者优先
A14: 9 | B14: 台州市分行 | C14: 临海市支行 | E14: 客户经理 | F14: 3 | G14: 临海 | H14: 负责个人金融客户、信贷客户、公司客户等各类客户营销工作。 | I14: 原则上年龄35周岁及以下 | J14: 专业不限，金融经济类相关专业优先 | K14: 本科及以上 | L14: 具备2年以上工作经验，有金融行业相关岗位经历者优先
F15: =SUM(F5:F14) -> 22

Sheet 舟 (hidden)
A1: 附件2：
A2: 2015年省分行社会招聘需求明细表
A3: 行领导： | F3: 分行公章： | J3: 填报人：刘谨源 | M3: 填报时间：2015年7月15日
A4: 序号 | B4: 二级分行名称 | C4: 一级支行名称 | D4: 所在部门/ 二级支行 | E4: 招聘岗位 | F4: 招聘 人数 | G4: 工作 地点 | H4: 岗位职责 | I4: 年龄要求 | J4: 专业要求 | K4: 学历要求 | L4: 工作经验要求 | M4: 持证要求 | N4: 其他任职要求 | O4: 备注
A5: 1 | B5: 舟山市分行 | C5: 无 | D5: 公司业务部 | E5: 副总经理 | F5: 1 | G5: 舟山 | H5: 协助总经理做好辖内公司业务、国际业务、金融市场供应链等工作。 | I5: 35周岁以下 | J5: 金融经济类专业 | K5: 本科及以上 | L5: 具备4年以上金融行业相关岗位从业经历，具有相关公司业务管理从业经历。
A6: 2 | B6: 舟山市分行 | C6: 无 | D6: 个人金融部信用卡中心 | E6: 业务管理 | F6: 1 | G6: 舟山 | H6: 负责信用卡业务的宣传、日常管理等综合业务管理工作。 | I6: 35周岁及以下 | J6: 金融经济类专业 | K6: 本科及以上 | L6: 具备2年以上金融行业相关岗位从业经历
A7: 3 | B7: 舟山市分行 | C7: 无 | D7: 无 | E7: 一级支行副行长 | F7: 1 | G7: 舟山辖内 | H7: 协助行长做好辖内经营、管理工作。 | I7: 35周岁以下 | J7: 金融经济类专业 | K7: 本科及以上 | L7: 具备4年以上金融行业相关岗位从业经历，具有同业分支行领导经历。
A8: 4 | B8: 舟山市分行 | C8: 无 | D8: 办公室 | E8: 秘书 | F8: 1 | G8: 舟山 | H8: 负责起草分行行政文件和材料、媒体管理及宣传活动组织工作。 | I8: 35周岁及以下 | J8: 金融经济类、文学类专业 | K8: 本科及以上 | L8: 具备2年以上金融行业相关岗位从业经历 | N8: 需男性
A9: 5 | B9: 舟山市分行 | C9: 无 | D9: 零售信贷部 | E9: 产品经理 | F9: 2 | G9: 舟山 | H9: 负责个人贷款业务的产品设计、制度起草修订、业务推广、销售支持、业务培训等工作。 | I9: 35周岁及以下 | J9: 金融经济类专业 | K9: 本科及以上 | L9: 具备2年以上金融行业相关岗位从业经历
A10: 6 | B10: 舟山市分行 | C10: 无 | D10: 资产保全部 | E10: 资产保全 | F10: 1 | G10: 舟山 | H10: 负责资产保全业务管理工作，提供资产保全法律事务保障等。 | I10: 35周岁及以下 | J10: 金融经济类专业 | K10: 本科及以上 | L10: 具备2年以上金融行业相关岗位从业经历
A11: 7 | B11: 舟山市分行 | C11: 无 | D11: 风险管理部 | E11: 风险管理 | F11: 1 | G11: 舟山 | H11: 负责风险管理政策的落实、分行的风险评估和管理及授信资产的资产分类、拨备计量等工作。 | I11: 35周岁及以下 | J11: 金融经济类专业 | K11: 本科及以上 | L11: 具备2年以上金融行业相关岗位从业经历

Sheet 省 (hidden)
A1: 附件2：
A2: 2015年省分行社会招聘需求明细表
A3: 行领导： | F3: 分行公章： | J3: 填报人： | M3: 填报时间：
A4: 序号 | B4: 二级分行名称 | C4: 一级支行名称 | D4: 所在部门/ 二级支行 | E4: 招聘岗位 | F4: 招聘 人数 | G4: 工作 地点 | H4: 岗位职责 | I4: 年龄要求 | J4: 专业要求 | K4: 学历要求 | L4: 工作经验要求 | M4: 持证要求 | N4: 其他任职要求 | O4: 备注
A5: 9 | B5: 浙江省分行 | D5: 授信管理部 | E5: 授信审查 | F5: 1 | G5: 杭州 | H5: 负责贸易融资业务审查。 | J5: 金融经济类专业 | K5: 本科及以上 | L5: 具有3年以上（含）同业贸易融资业务经验。 | N5: 男性优先考虑
A6: 10 | B6: 浙江省分行 | D6: 信息科技部 | E6: 应用开发 | F6: 4 | G6: 杭州 | H6: 1.负责本行信息技术项目的开发工作； 2.负责应用系统的优化和技术支持等工作 | J6: 计算机相关专业 | K6: 本科及以上 | L6: 2年以上银行软件分析、设计和开发的工作经验 | M6: 鼓励取得PMP资格证书 | N6: 具有一定的法律、金融、财务知识；具备良好的沟通能力、逻辑思维能力和承压能力
A7: 11 | B7: 浙江省分行 | D7: 信息科技部 | E7: 系统网络管理 | F7: 1 | G7: 杭州 | H7: 1.负责数据库、操作系统、中间件等管理； 2.负责信息中心基础设施管理； 3.负责总行和省内信息化项目的组织和实施； | J7: 理工科专业 | K7: 本科及以上 | L7: 具备2年以上数据库管理经验 | M7: 鼓励取得数据库认证证书 | N7: 无不良行为或业务记录；工作责任心强，逻辑思维能力佳，善于组织沟通协调
A8: 12 | B8: 浙江省分行 | D8: 审计部 | E8: 个人业务审计（资产业务） | F8: 1 | G8: 杭州 | H8: 1.负责参与制定资产业务审计制度、审计计划和审计工作方案； 2.实施资产业务审计计划，拟定审计实施方案并实施，撰写审计报告等。 | J8: 审计、财务会计类专业 | K8: 本科及以上 | L8: 具有2年及以上资产业务检查或信贷等资产业务管理相关岗位工作经验 | M8: 取得CIA、CPA、ACCA、CGA、CISA、CCSA职业资格的优先。
A9: 13 | B9: 浙江省分行 | D9: 审计部 | E9: 公司业务审计（资产业务） | F9: 2 | G9: 杭州 | H9: 1.负责参与制定资产业务审计制度、审计计划和审计工作方案； 2.实施资产业务审计计划，拟定审计实施方案并实施，撰写审计报告等。 | J9: 审计、财务会计类专业 | K9: 本科及以上 | L9: 具有2年及以上资产业务审计或信贷、票据贴现、金融市场等资产业务管理相关岗位工作经验 | M9: 取得CIA、CPA、ACCA、CGA、CISA、CCSA职业资格的优先。
A10: 14 | B10: 浙江省分行 | D10: 审计部 | E10: IT审计 | F10: 2 | G10: 杭州 | H10: 1.负责参与制定IT审计制度、审计计划和审计工作方案； 2.实施IT审计计划，拟定审计实施方案并实施，撰写审计报告； 3.参与审计信息系统建设工作； 4.运用集中监控、统一分析的结果为现场审计提供审计重点，编写审计模型、撰写非现场分析报告等。 | J10: 理工科专业 | K10: 本科及以上 | L10: 具有2年及以上信息科技相关岗位的工作经验， | M10: 取得CIA、CPA、ACCA、CGA、CISA、CCSA职业资格的优先。 | N10: 具备审计或资产业务、中间业务、负债业务经验的优先
A11: 15 | B11: 浙江省分行 | D11: 审计部 | E11: 经济责任审计 | F11: 1 | G11: 杭州 | H11: 1.负责参与制定经济责任审计制度、审计计划和审计工作方案； 2.实施经济责任审计计划，拟定审计实施方案并实施，撰写审计报告等。 | J11: 审计、财务会计类专业 | K11: 本科及以上 | L11: 具有2年及以上经济责任及财务审计或资产业务、负债业务、中间业务、计划财务、风险管理等相关岗位的工作经验； | M11: 取得CIA、CPA、ACCA、CGA、CISA、CCSA职业资格的优先。
A12: 16 | B12: 浙江省分行 | D12: 审计部 | E12: 财务审计 | F12: 2 | G12: 杭州 | H12: 1.负责参与制定财务审计制度、审计计划和审计工作方案； 2.实施财务审计计划，拟定审计实施方案并实施，撰写审计报告等。 | J12: 审计、财务会计类专业 | K12: 本科及以上 | L12: 具有2年及以上财务审计或计划财务管理相关岗位的工作经验； | M12: 取得CIA、CPA、ACCA、CGA、CISA、CCSA职业资格的优先。
A13: 17 | B13: 浙江省分行 | D13: 计划财务部 | E13: 财务审核 | F13: 5 | G13: 杭州 | H13: 1.负责审核核算会计编制的记账凭证； 2.负责归纳和整理会计核算中涉及的问题并提出解决建议； 3.负责定期开展会计信息专题分析和财务检查，并对市分行预算执行情况进行监控。 | J13: 财务会计类专业 | K13: 本科及以上 | L13: 具有3年以上财务工作经验 | M13: 会计从业资格证书、初级专业技术资格
A14: 18 | B14: 浙江省分行 | D14: 办公室 | E14: 品牌建设与管理 | F14: 1 | G14: 杭州 | H14: 1.负责品牌文化建设、对外形象宣传、业务、产品宣传； 2.负责企业形象维护，负责辖内舆情监测、控制，媒体关系管理； 3.协助全行声誉风险管理工作。 | J14: 专业不限 | K14: 本科及以上 | L14: 具有2年以上从业经验 | N14: 男性优先考虑
A15: 1 | B15: 浙江省分行营业部 | D15: 业务发展部 | E15: 公司客户经理 | F15: 2 | G15: 营业部 | H15: 负责公司业务、金融市场业务、网商业务等营销。 | I15: 35周岁及以下 | J15: 经济、金融等相关专业 | K15: 本科及以上 | L15: 具备3年以上金融同业经验；具备一定的商务谈判、市场拓展与文字处理能力。
